bitfinex/quotes_ETHUSD_20250924
["timestamp","ask_amount","ask_price","bid_price","bid_amount"]
[1758728600495,2.38082668,4200.3,4200.1,0.002]
[1758728600709,2.38078451,4200.3,4200.1,0.002]
[1758728600886,0.75605099,4200.4,4200.1,0.002]
[1758728601202,3.057739,4200.2,4200.1,0.002]
[1758728601386,5.33682665,4200.2,4200.1,0.002]
[1758728601587,5.33782665,4200.2,4200.1,0.002]
[1758728602909,3.56978999,4200.2,4200.1,0.002]
[1758728606910,4.20953718,4200.2,4200.1,0.002]
[1758728614204,3.56978999,4200.2,4200.1,0.002]
[1758728614414,5.35932808,4200.2,4200.1,0.002]
[1758728616685,4.68242808,4200.2,4200.1,0.002]
[1758728616894,3.53334005,4200.2,4200.1,0.6905]
[1758728617130,2.89288999,4200.2,4200.1,0.2374]
[1758728617332,2.89288999,4200.2,4200.1,0.002]
[1758728618339,2.89288999,4200.2,4200.1,0.2374]
[1758728618538,2.89288999,4200.2,4200.1,0.002]
[1758728618732,3.22415038,4200.2,4200.1,0.002]
[1758728619098,4.07792743,4200.2,4200.1,0.002]
[1758728620645,3.22415038,4200.2,4200.1,0.002]
[1758728623738,3.47255038,4200.2,4200.1,0.002]
[1758728623937,3.91465038,4200.2,4200.1,0.002]
[1758728624137,3.47175038,4200.2,4200.1,0.002]
[1758728624921,3.91465038,4200.2,4200.1,0.002]
[1758728625443,3.47175038,4200.2,4200.1,0.002]
[1758728627057,3.22335038,4200.2,4200.1,0.002]
[1758728628726,0.84251138,4200.2,4200.1,0.6779]
[1758728628929,2.89208999,4200.2,4200.1,0.6779]
[1758728629634,0.51125099,4200.2,4200.1,0.6779]
[1758728629843,1.36827595,4200.2,4200.1,0.6779]
[1758728630026,3.74911495,4200.2,4200.1,0.6779]
[1758728630340,2.89208999,4200.2,4200.1,0.6779]
[1758728630521,2.89208999,4200.2,4200.1,0.002]
[1758728632251,2.89208999,4200.2,4200.1,0.2405]
[1758728632543,2.89208999,4200.2,4200.1,0.002]
[1758728633075,4.12807458,4200.2,4200.1,0.002]
[1758728633283,3.68517458,4200.2,4200.1,0.002]
[1758728633783,4.12807458,4200.2,4200.1,0.002]
[1758728635380,5.40864614,4200.2,4200.1,0.002]
[1758728637985,4.96574614,4200.2,4200.1,0.002]
[1758728639057,4.71734614,4200.2,4200.1,0.002]
[1758728639261,3.43677458,4200.2,4200.1,0.002]
[1758728640388,3.43677458,4200.2,4200.1,0.2499]
[1758728640575,2.89208999,4200.2,4200.1,0.6933]
[1758728642305,2.89208999,4200.2,4200.1,0.2499]
[1758728642511,3.74872738,4200.2,4200.1,0.2499]
[1758728642809,3.74872738,4200.2,4200.1,0.6933]
[1758728642810,1.36788838,4200.2,4200.1,0.6933]
[1758728643814,3.74872738,4200.2,4200.1,0.6933]
[1758728644176,2.89208999,4200.2,4200.1,0.6933]
[1758728644426,2.89208999,4200.2,4200.1,0.2499]
[1758728645407,2.89208999,4200.2,4200.1,0.002]
[1758728645916,0.51125099,4200.2,4200.1,0.4454]
[1758728646123,0.51125099,4200.2,4200.1,0.6933]
[1758728646920,0.62965099,4200.2,4200.1,0.6933]
[1758728647081,1.27188998,4200.2,4200.1,0.6933]
[1758728647308,0.62965099,4200.2,4200.1,0.6933]
[1758728647905,1.27188998,4200.2,4200.1,0.6933]
[1758728650106,0.62965099,4200.2,4200.1,0.6933]
[1758728650746,1.27188998,4200.2,4200.1,0.6933]
[1758728651041,1.27108998,4200.2,4200.1,0.6933]
[1758728651248,0.62885099,4200.2,4200.1,0.6933]
[1758728651478,0.62885099,4200.2,4200.1,0.002]
[1758728651757,3.25028999,4200.2,4200.1,0.002]
[1758728652448,0.62885099,4200.2,4200.1,0.002]
[1758728652747,3.01068999,4200.2,4200.1,0.002]
[1758728653245,0.62985099,4200.2,4200.1,0.2389]
[1758728653441,1.27196362,4200.2,4200.1,0.6714]
[1758728653812,3.65280262,4200.2,4200.1,0.6714]
[1758728654307,3.65280262,4200.2,4200.1,0.2389]
[1758728654725,1.27196362,4200.2,4200.1,0.2389]
[1758728654932,3.65280262,4200.2,4200.1,0.2389]
[1758728655149,3.65280262,4200.2,4200.1,0.002]
[1758728655365,1.27196362,4200.2,4200.1,0.002]
[1758728655565,1.27196362,4200.2,4200.1,0.2389]
[1758728655864,3.65280262,4200.2,4200.1,0.2389]
[1758728656349,3.01068999,4200.2,4200.1,0.002]
[1758728656665,3.24828999,4200.2,4200.1,0.002]
[1758728656848,3.70328999,4200.2,4200.1,0.002]
[1758728657653,3.24828999,4200.2,4200.1,0.002]
[1758728663989,0.62985099,4200.2,4200.1,0.002]
[1758728664157,0.62985099,4200.2,4200.1,0.6714]
[1758728664345,3.01068999,4200.2,4200.1,0.6714]
[1758728664863,3.01068999,4200.2,4200.1,0.002]
[1758728666889,0.62985099,4200.2,4200.1,0.002]
[1758728667053,0.62985099,4200.2,4200.1,0.6714]
[1758728667445,1.27273899,4200.2,4200.1,0.6714]
[1758728667848,3.65357799,4200.2,4200.1,0.6714]
[1758728668062,3.01068999,4200.2,4200.1,0.6714]
[1758728668264,3.01068999,4200.2,4199.6,0.002]
[1758728668265,2.38112246,4199.7,4199.6,0.002]
[1758728668560,15.25407094,4199.7,4199.6,0.002]
[1758728668866,15.94667094,4199.7,4199.6,0.002]
[1758728669047,16.73867094,4199.7,4199.6,0.002]
[1758728670722,5.89157345,4199.7,4199.6,0.002]
[1758728671194,6.85675143,4199.7,4199.6,0.002]
[1758728671376,7.09435143,4199.7,4199.6,0.002]
[1758728673116,7.94927273,4199.7,4199.6,0.002]
[1758728673897,7.71167273,4199.7,4199.6,0.002]
[1758728674205,7.71167273,4199.7,4199.6,0.6714]
[1758728674395,7.71167273,4199.7,4199.6,0.2389]
[1758728674720,7.71167273,4199.7,4199.6,0.002]
[1758728675795,7.94927273,4199.7,4199.6,0.002]
[1758728675991,8.40427273,4199.7,4199.6,0.002]
[1758728678111,8.40347273,4199.7,4199.6,0.002]
[1758728678816,7.94847273,4199.7,4199.6,0.002]
[1758728680063,5.89157345,4199.7,4199.6,0.6714]
[1758728680360,6.53291341,4199.7,4199.6,0.6714]
[1758728680658,6.53291341,4199.7,4199.6,0.002]
[1758728681353,6.53291341,4199.7,4199.6,0.6714]
[1758728682114,5.89157345,4199.7,4199.6,0.002]
[1758728683759,5.89157345,4199.7,4199.6,0.2494]
[1758728684163,5.89157345,4199.7,4199.6,0.002]
[1758728684164,16.90998975,4199.7,4199.6,0.002]
[1758728685065,16.43508975,4199.7,4199.6,0.002]
[1758728685751,7.07259226,4199.7,4199.6,0.002]
[1758728686131,6.12677345,4199.7,4199.6,0.002]
[1758728687063,5.89157345,4199.7,4199.6,0.002]
[1758728690264,7.45659475,4199.7,4199.6,0.002]
[1758728691066,6.12677345,4199.7,4199.6,0.002]
[1758728691370,6.98169475,4199.7,4199.6,0.002]
[1758728692058,8.09142286,4199.7,4199.6,0.002]
[1758728692260,7.23650156,4199.7,4199.6,0.002]
[1758728693258,16.59899905,4199.7,4199.6,0.002]
[1758728694146,16.12409905,4199.7,4199.6,0.002]
[1758728694475,16.59899905,4199.7,4199.6,0.002]
[1758728696859,8.52018254,4199.7,4199.6,0.002]
[1758728697246,8.02850156,4199.7,4199.6,0.002]
[1758728697679,2.38134927,4199.3,4199.2,0.002]
[1758728697858,2.89180026,4199.3,4199.2,0.002]
[1758728698675,2.89180026,4199.3,4199.2,0.2494]
[1758728698881,0.75785099,4199.3,4199.2,0.002]
[1758728699174,3.99630389,4199.3,4199.2,0.7158]
[1758728700193,3.99630389,4199.3,4199.2,0.002]
[1758728700194,0.75785099,4199.3,4199.2,0.002]
[1758728700493,3.99647169,4199.3,4199.2,0.002]
[1758728700669,12.00214539,4199.3,4199.2,0.002]
[1758728700874,12.09310582,4199.3,4199.2,0.002]
[1758728701795,12.09310582,4199.3,4199.2,0.7148]
[1758728703389,12.09310582,4199.3,4199.2,0.002]
[1758728703610,9.71175655,4199.3,4199.2,0.002]
[1758728703786,9.71175655,4199.3,4199.2,0.2497]
[1758728704101,1.61505791,4199.3,4199.2,0.7148]
[1758728704699,0.75785099,4199.3,4199.2,0.7148]
[1758728704897,0.87625099,4199.3,4199.2,0.7148]
[1758728705095,1.51886035,4199.3,4199.2,0.7148]
[1758728705278,0.62805099,4199.3,4199.2,0.7148]
[1758728706702,0.62805099,4199.3,4199.2,0.002]
[1758728707010,13.46816176,4199.3,4199.2,0.002]
[1758728707299,13.04385484,4199.3,4199.2,0.002]
[1758728707523,16.32620385,4199.3,4199.2,0.002]
[1758728707720,2.38163284,4198.8,4198.7,0.002]
[1758728707899,11.76285402,4198.8,4198.7,0.002]
[1758728708099,13.84509527,4198.8,4198.7,0.002]
[1758728708627,12.65607015,4198.8,4198.7,0.002]
[1758728709202,16.44807015,4198.8,4198.7,0.002]
[1758728709386,17.73259269,4198.8,4198.7,0.002]
[1758728709592,16.44807015,4198.8,4198.7,0.002]
[1758728711299,17.72988514,4198.8,4198.7,0.002]
[1758728711704,16.44807015,4198.8,4198.7,0.002]
[1758728712493,17.72938956,4198.8,4198.7,0.002]
[1758728713527,15.21437015,4198.8,4198.7,0.002]
[1758728714328,14.98827015,4198.8,4198.7,0.002]
[1758728716726,14.89277273,4198.8,4198.7,0.002]
[1758728716926,6.23526654,4198.8,4198.7,0.002]
[1758728717135,0.6403182,4199.1,4198.7,0.6908]
[1758728717338,0.1184,4198.9,4198.8,0.6888]
[1758728717738,0.1184,4198.9,4198.8,3.07043284]
[1758728718660,0.1184,4198.9,4198.8,0.6888]
[1758728721824,0.1184,4198.9,4198.8,0.248]
[1758728722021,0.1184,4198.9,4198.8,0.6888]
[1758728723856,0.1184,4198.9,4198.8,3.07043284]
[1758728724063,0.001,4199.1,4198.9,2.38151943]
[1758728724361,0.001,4199.1,4198.9,3.07031943]
[1758728724658,0.001,4199.1,4199.0,0.6888]
[1758728729937,0.001,4199.1,4198.7,0.002]
[1758728730139,0.1184,4198.9,4198.7,0.002]
[1758728730359,8.44119864,4198.9,4198.7,0.002]
[1758728730560,3.12008461,4198.8,4198.7,0.002]
[1758728731050,3.57798461,4198.8,4198.7,0.002]
[1758728731232,5.05957727,4198.8,4198.7,0.002]
[1758728732154,1.99394443,4198.8,4198.7,0.002]
[1758728732347,0.1184,4198.9,4198.7,0.6908]
[1758728732663,0.1176,4198.9,4198.8,0.248]
[1758728734034,0.1184,4199.0,4198.8,0.6888]
[1758728734268,0.1184,4199.0,4198.9,0.6888]
[1758728736766,2.4999194,4199.0,4198.7,0.002]
[1758728736970,2.4999194,4199.0,4198.7,0.25]
[1758728737357,2.3815194,4199.0,4198.7,0.002]
[1758728737570,2.6076194,4199.0,4198.7,0.002]
[1758728737765,2.38163284,4198.8,4198.7,0.002]
[1758728738070,3.06559541,4198.9,4198.7,0.002]
[1758728738265,0.2261,4198.8,4198.7,0.002]
[1758728738592,2.38157731,4198.9,4198.7,0.002]
[1758728738793,2.60773284,4198.8,4198.7,0.002]
[1758728739095,0.2261,4198.8,4198.7,0.002]
[1758728740349,2.60773284,4198.8,4198.7,0.002]
[1758728740776,3.06563284,4198.8,4198.7,0.002]
[1758728740982,3.7257101,4198.8,4198.7,0.002]
[1758728741194,4.23806187,4198.8,4198.7,0.002]
[1758728742876,1.85642903,4198.8,4198.7,0.002]
[1758728743281,2.49674723,4198.8,4198.7,0.002]
[1758728743690,4.87838007,4198.8,4198.7,0.002]
[1758728744051,2.49674723,4198.8,4198.7,0.002]
[1758728744253,2.03884723,4198.8,4198.7,0.002]
[1758728744850,4.42048007,4198.8,4198.7,0.002]
[1758728745578,2.03884723,4198.8,4198.7,0.002]
[1758728745772,4.42048007,4198.8,4198.7,0.002]
[1758728745973,7.22936187,4198.8,4198.7,0.002]
[1758728746386,8.51068128,4198.8,4198.7,0.002]
[1758728746612,8.02136187,4198.8,4198.7,0.002]
[1758728746811,17.55006051,4198.8,4198.7,0.002]
[1758728747109,14.27044493,4198.6,4198.5,0.002]
[1758728747308,6.48837106,4198.6,4198.5,0.002]
[1758728747508,15.2834697,4198.6,4198.5,0.002]
[1758728747712,16.7154697,4198.6,4198.5,0.002]
[1758728748785,4.60585975,4198.4,4198.3,0.002]
[1758728748991,10.50949767,4198.4,4198.3,0.002]
[1758728749194,11.20789767,4198.4,4198.3,0.002]
[1758728749713,3.17425695,4197.7,4197.1,0.02]
[1758728749890,11.78330736,4197.7,4197.1,0.02]
[1758728750218,12.48170736,4197.7,4197.1,0.02]
[1758728750399,14.53923288,4197.7,4197.1,0.02]
[1758728751111,27.06793152,4197.7,4197.1,0.02]
[1758728751318,18.8186373,4197.7,4197.1,0.02]
[1758728751781,17.53923288,4197.7,4197.1,0.02]
[1758728754284,18.3896051,4197.7,4197.1,0.02]
[1758728754484,18.76317363,4197.7,4197.1,0.02]
[1758728755688,18.3896051,4197.7,4197.1,0.02]
[1758728758209,17.53923288,4197.7,4197.1,0.02]
[1758728758405,9.44253424,4197.7,4197.1,0.02]
[1758728758809,8.74413424,4197.7,4197.1,0.022]
[1758728758986,8.74413424,4197.7,4197.4,0.2516]
[1758728759183,9.38198114,4197.7,4197.4,0.2516]
[1758728759594,9.38118114,4197.7,4197.4,0.2516]
[1758728759788,8.58918114,4197.7,4197.4,0.2516]
[1758728760217,8.58918114,4197.7,4197.4,0.002]
[1758728760419,6.12320872,4197.7,4197.4,0.002]
[1758728761110,6.76146895,4197.7,4197.4,0.002]
[1758728761621,7.36090872,4197.7,4197.4,0.002]
[1758728762020,7.32397255,4197.7,4197.4,0.002]
[1758728762802,7.55337255,4197.7,4197.4,0.002]
[1758728763102,8.67653137,4197.7,4197.4,0.002]
[1758728763295,8.03836754,4197.7,4197.4,0.002]
[1758728763497,8.48406754,4197.7,4197.4,0.002]
[1758728763916,8.03836754,4197.7,4197.4,0.002]
[1758728764826,8.44702047,4197.7,4197.4,0.002]
[1758728765013,7.65502047,4197.7,4197.4,0.2488]
[1758728765391,7.65502047,4197.7,4197.4,0.002]
[1758728765792,7.65502047,4197.7,4197.6,0.7043]
[1758728765988,7.65502047,4197.7,4197.6,0.002]
[1758728766195,8.48406754,4197.7,4197.6,0.002]
[1758728766595,9.33443976,4197.7,4197.6,0.002]
[1758728766804,8.48406754,4197.7,4197.6,0.002]
[1758728767491,8.85764906,4197.7,4197.6,0.002]
[1758728767697,10.13705348,4197.7,4197.6,0.002]
[1758728767898,8.85764906,4197.7,4197.6,0.002]
[1758728768420,10.13705348,4197.7,4197.6,0.002]
[1758728770213,8.85764906,4197.7,4197.6,0.002]
[1758728771811,2.38237045,4197.5,4197.4,0.002]
[1758728772012,6.56395798,4197.5,4197.4,0.002]
[1758728772229,5.28600837,4197.5,4197.4,0.002]
[1758728772542,5.97374505,4197.5,4197.4,0.002]
[1758728772943,7.25279336,4197.5,4197.4,0.002]
[1758728773300,6.76574505,4197.5,4197.4,0.002]
[1758728773829,0.792,4197.2,4197.1,1e-08]
[1758728774029,15.36605217,4197.2,4197.1,1e-08]
[1758728774238,18.43709291,4197.2,4197.1,1e-08]
[1758728776162,20.14538237,4197.2,4197.1,1e-08]
[1758728776363,6.1745975,4197.1,4197.0,0.002]
[1758728776562,8.64110917,4197.1,4197.0,0.002]
[1758728776728,10.89401053,4197.1,4197.0,0.002]
[1758728776912,6.17476782,4196.8,4196.6,0.002]
[1758728777117,16.06327367,4196.8,4196.6,0.002]
[1758728777450,18.46102868,4196.8,4196.6,0.002]
[1758728777615,16.75177367,4196.8,4196.6,0.002]
[1758728777814,19.14305982,4196.8,4196.6,0.002]
[1758728778252,19.07382013,4196.8,4196.6,0.002]
[1758728778456,20.53727535,4196.8,4196.6,0.002]
[1758728778777,18.82822013,4196.8,4196.6,0.002]
[1758728779339,20.53727535,4196.8,4196.6,0.002]
[1758728780219,9.45130273,4196.8,4196.6,0.002]
[1758728780521,9.79429394,4196.8,4196.7,0.6754]
[1758728780722,9.07764242,4196.8,4196.7,0.6754]
[1758728781020,9.07764242,4196.8,4196.7,0.2467]
[1758728781021,6.68635627,4196.8,4196.7,0.2467]
[1758728781363,6.68635627,4196.8,4196.7,0.6754]
[1758728782139,6.68635627,4196.8,4196.7,0.002]
[1758728782339,6.68635627,4196.8,4196.7,0.6754]
[1758728783782,6.68635627,4196.8,4196.7,0.2467]
[1758728783984,8.0818026,4196.8,4196.7,0.2467]
[1758728784371,8.0818026,4196.8,4196.7,0.6754]
[1758728784707,8.0818026,4196.8,4196.7,0.002]
[1758728785508,6.1748246,4196.7,4196.6,0.002]
[1758728785718,8.06470494,4196.7,4196.6,0.002]
[1758728786671,8.06390494,4196.7,4196.6,0.002]
[1758728787007,2.38299494,4196.4,4196.3,0.4787]
[1758728787208,7.96705828,4196.4,4196.3,0.05]
[1758728787613,7.96705828,4196.4,4196.3,0.7234]
[1758728788010,7.96705828,4196.4,4196.3,0.05]
[1758728788174,7.96705828,4196.4,4196.3,0.7234]
[1758728788377,9.21136774,4196.4,4196.3,0.05]
[1758728789217,7.93089285,4196.4,4196.3,0.2947]
[1758728789515,6.68658339,4196.4,4196.3,0.7234]
[1758728791433,6.68658339,4196.4,4196.3,0.2947]
[1758728792027,6.68658339,4196.4,4196.3,0.05]
[1758728792392,7.96705828,4196.4,4196.3,0.05]
[1758728792730,8.6590372,4196.4,4196.3,0.05]
[1758728793399,18.0359546,4196.4,4196.3,0.05]
[1758728793866,6.17505173,4196.3,4196.2,0.002]
[1758728794124,8.9569954,4196.3,4196.2,0.002]
[1758728794338,8.9569954,4196.3,4195.0,0.098094]
[1758728794339,2.38361976,4195.3,4195.0,0.098094]
[1758728794486,7.54088326,4195.2,4195.0,0.098094]
[1758728794683,6.93286503,4195.2,4195.0,0.098094]
[1758728795620,6.68726503,4195.2,4195.0,0.098094]
[1758728796405,6.92962281,4195.2,4195.0,0.098094]
[1758728796612,7.17522281,4195.2,4195.0,0.098094]
[1758728796786,7.61812281,4195.2,4195.0,0.098094]
[1758728797184,16.55214021,4195.2,4195.0,0.098094]
[1758728797491,16.99504021,4195.2,4195.0,0.098094]
[1758728797818,2.3837334,4195.1,4195.0,0.098094]
[1758728798023,5.38379022,4195.0,4194.1,0.2647]
[1758728798184,3.02334019,4194.2,4194.1,0.02]
[1758728798689,3.02334019,4194.2,4194.1,0.6934]
[1758728799318,4.15068374,4194.4,4194.1,0.6934]
[1758728799519,2.3842449,4194.2,4194.1,0.02]
[1758728800019,2.3842449,4194.2,4194.1,0.4487]
[1758728800207,0.51158845,4194.3,4194.1,0.6934]
[1758728800383,4.15068374,4194.6,4194.2,0.6734]
[1758728800589,0.51158845,4194.6,4194.3,0.6734]
[1758728800785,3.02305972,4194.7,4194.4,0.6734]
[1758728800989,2.3840191,4194.6,4194.5,0.6734]
[1758728801210,5.3840191,4194.6,4194.1,0.02]
[1758728801424,0.51158845,4194.5,4194.1,0.02]
[1758728801631,3.0,4194.5,4194.1,0.02]
[1758728801816,3.0,4194.5,4194.2,0.6936]
[1758728801817,0.51158845,4194.5,4194.2,0.6936]
[1758728802016,6.53465739,4194.7,4194.3,0.6936]
[1758728802221,6.53465739,4194.7,4194.4,0.6936]
[1758728802222,5.38409058,4194.5,4194.4,0.6936]
[1758728802437,5.89567903,4194.5,4194.1,0.02]
[1758728802743,0.51158845,4194.4,4194.2,0.6936]
[1758728802909,0.51158845,4194.5,4194.3,0.6936]
[1758728803111,5.89566283,4194.5,4194.4,0.6936]
[1758728805058,2.3842449,4194.2,4194.1,0.4737]
[1758728805346,2.3842449,4194.2,4194.1,0.2599]
[1758728805553,2.3842449,4194.2,4194.1,0.02]
[1758728807051,2.89577989,4194.3,4194.1,0.4737]
[1758728807533,3.51158845,4194.4,4194.2,0.2399]
[1758728807864,0.51158845,4194.5,4194.3,0.6936]
[1758728808152,0.51158845,4194.5,4194.4,0.6936]
[1758728808153,0.1192,4194.5,4194.4,0.6936]
[1758728808313,0.1192,4194.5,4194.4,0.71744131]
[1758728808509,0.1192,4194.5,4194.4,0.6936]
[1758728812932,0.1192,4194.5,4194.3,0.002]
[1758728813328,2.38413122,4194.4,4194.3,0.002]
[1758728813719,5.92314356,4194.4,4194.3,0.002]
[1758728814026,8.02933885,4194.4,4194.3,0.002]
[1758728814357,7.9010747,4194.4,4194.3,0.002]
[1758728814872,7.2259747,4194.4,4194.3,0.002]
[1758728815353,3.51083114,4194.4,4194.3,0.002]
[1758728815514,0.51083114,4194.5,4194.3,0.6956]
[1758728815844,2.38397454,4194.7,4194.4,0.6936]
[1758728816049,0.51083114,4194.8,4194.5,0.6936]
[1758728816246,3.6386272,4195.1,4194.6,0.6936]
[1758728816455,0.6386272,4195.1,4194.7,0.6936]
[1758728816768,0.6386272,4195.1,4194.8,0.6936]
[1758728816769,3.0,4195.1,4194.8,0.6936]
[1758728816931,2.38379022,4195.0,4194.9,0.2399]
[1758728817127,2.89462136,4195.0,4194.9,0.2399]
[1758728817565,0.51083114,4195.0,4194.9,0.2399]
[1758728817761,3.02231038,4195.2,4194.9,0.2399]
[1758728817968,3.02231038,4195.2,4194.3,0.002]
[1758728817969,0.6386272,4195.2,4195.0,0.2399]
[1758728818181,1.27901387,4195.8,4194.3,0.002]
[1758728818182,0.51083114,4195.7,4195.1,0.71743733]
[1758728818472,0.51083114,4195.7,4195.2,0.2399]
[1758728818473,2.38343877,4195.7,4195.2,0.2399]
[1758728818656,2.38345321,4195.6,4195.3,0.2399]
[1758728818826,2.38352243,4195.5,4195.2,0.4537]
[1758728819258,1.15011306,4195.9,4195.2,0.4537]
[1758728819259,2.38339252,4195.7,4195.2,0.4537]
[1758728819461,1.15011306,4195.9,4195.3,0.6936]
[1758728819667,2.38333955,4195.8,4195.3,0.6936]
[1758728819968,2.38341106,4195.7,4195.4,0.6859]
[1758728820132,0.51148586,4195.9,4195.4,0.6859]
[1758728820462,3.02191015,4195.9,4195.5,0.2423]
[1758728820657,2.38344932,4195.6,4195.5,0.2423]
[1758728820865,0.6386272,4195.9,4195.5,0.2423]
[1758728821060,2.38333015,4195.9,4195.6,0.2423]
[1758728821231,2.38336501,4195.8,4195.6,0.6859]
[1758728821559,0.51148586,4196.0,4195.7,0.6859]
[1758728821560,0.6386272,4196.0,4195.7,0.6859]
[1758728821967,0.6386272,4196.1,4195.8,0.70973335]
[1758728822166,1.15011306,4196.6,4195.9,0.6859]
[1758728822485,3.6386272,4196.7,4196.0,0.70973222]
[1758728822664,0.6386272,4196.7,4196.1,11.19676819]
[1758728822870,0.02,4196.9,4196.5,8.10389289]
[1758728823235,0.02,4196.9,4195.6,2.38339559]
[1758728823236,0.02,4196.9,4196.0,0.4436]
[1758728823552,2.3827761,4196.8,4196.1,8.34619289]
[1758728823732,0.1184,4196.6,4196.1,8.34619289]
[1758728823958,0.1184,4196.6,4196.2,0.6859]
[1758728824362,0.02,4196.9,4195.9,0.6859]
[1758728824363,0.743,4196.9,4195.9,0.6859]
[1758728824580,0.1184,4196.3,4195.9,0.6859]
[1758728824775,0.1184,4196.3,4196.0,0.6859]
[1758728825005,0.1184,4196.3,4195.6,2.50184809]
[1758728825208,0.1184,4196.3,4195.8,0.6859]
[1758728825406,0.1184,4196.3,4195.9,0.6859]
[1758728826097,0.1184,4196.3,4196.0,0.6859]
[1758728826277,0.1184,4196.3,4196.1,0.6859]
[1758728826485,0.1184,4196.3,4196.1,3.06902191]
[1758728826686,0.1184,4196.3,4196.2,0.6859]
[1758728827115,0.1184,4196.3,4196.2,3.0928396]
[1758728827422,0.1184,4196.3,4196.2,0.6859]
[1758728827587,0.1184,4196.3,4196.2,3.0928396]
[1758728827981,0.1184,4196.8,4196.3,2.38305173]
[1758728828206,0.1184,4196.8,4196.5,2.38293816]
[1758728828425,0.1184,4196.8,4196.6,0.02382881]
[1758728828619,0.1184,4196.8,4196.7,0.6859]
[1758728830387,0.1184,4196.8,4196.1,0.1184]
[1758728830701,2.3828248,4196.7,4196.0,0.2423]
[1758728830883,0.1184,4196.4,4196.0,2.62549953]
[1758728831078,0.1184,4196.4,4196.1,0.6859]
[1758728831282,0.1184,4196.4,4196.1,3.0690555]
[1758728831611,0.1184,4196.4,4195.7,0.1184]
[1758728831612,0.1184,4196.4,4196.3,2.38305173]
[1758728831914,0.1184,4196.4,4196.3,0.6902]
[1758728833283,0.1184,4196.4,4195.7,0.1184]
[1758728833512,0.1184,4196.4,4196.2,2.38310763]
[1758728833717,0.1184,4196.4,4196.2,3.07330763]
[1758728834082,0.1184,4196.4,4196.2,0.6902]
[1758728834281,0.1184,4196.4,4196.2,0.2277]
[1758728834477,0.1184,4196.4,4196.2,2.84560094]
[1758728834707,0.1184,4196.4,4196.3,0.2277]
[1758728834908,0.1184,4196.4,4196.3,0.6902]
[1758728835091,0.1184,4196.4,4196.3,0.2277]
[1758728835289,0.1184,4196.4,4196.0,0.6902]
[1758728835504,0.1184,4196.4,4195.7,0.1184]
[1758728835704,2.38309584,4196.3,4195.5,0.4625]
[1758728836031,0.1184,4196.2,4195.6,2.38340021]
[1758728836213,2.50152109,4196.2,4195.5,0.5809]
[1758728836396,0.1184,4195.9,4195.5,2.84600561]
[1758728836715,0.1184,4195.9,4195.4,0.2277]
[1758728836917,0.1184,4195.9,4195.5,2.38349721]
[1758728837123,0.1184,4195.9,4195.5,2.38350083]
[1758728837295,0.1184,4195.9,4195.3,0.2277]
[1758728837707,0.1184,4195.9,4195.4,2.38355987]
[1758728837896,0.1184,4195.9,4195.5,2.6112052]
[1758728838420,0.1184,4195.9,4195.2,0.1184]
[1758728838720,0.1184,4195.9,4195.4,2.38351389]
[1758728839045,0.1184,4195.9,4195.8,2.38333571]
[1758728839214,2.38378567,4196.8,4195.9,2.38325822]
[1758728839215,0.001,4196.8,4195.9,2.38325822]
[1758728839418,0.1184,4196.1,4196.0,0.71403222]
[1758728839633,0.1184,4196.1,4195.8,2.38332503]
[1758728839837,0.1184,4196.1,4196.0,0.6902]
[1758728840051,0.001,4196.8,4196.0,0.71403222]
[1758728840207,0.1184,4196.4,4196.1,2.61082366]
[1758728840550,0.1184,4196.4,4196.2,0.6902]
[1758728840924,0.0002,4196.8,4196.3,3.07325173]
[1758728841120,0.1184,4196.6,4196.4,0.6902]
[1758728841316,0.0002,4196.8,4196.0,2.38319397]
[1758728841317,0.0002,4196.8,4196.5,0.6902]
[1758728841515,0.1186,4196.8,4196.5,0.6902]
[1758728841836,0.1186,4196.8,4196.2,0.2277]
[1758728842015,2.50137617,4196.8,4196.2,0.2277]
[1758728842426,0.1186,4196.8,4196.2,0.2277]
[1758728842631,2.3829879,4196.8,4196.2,0.2277]
[1758728842827,0.1184,4196.6,4196.2,0.2277]
[1758728843363,0.1184,4196.6,4196.5,2.38293816]
[1758728843656,0.1186,4196.8,4196.6,2.38286438]
[1758728843836,0.1186,4196.8,4196.7,0.02382824]
[1758728844025,0.1186,4196.8,4196.7,0.25152824]
[1758728844410,0.0002,4196.8,4196.7,3.0730246]
[1758728844704,0.0002,4196.8,4196.7,0.6902]
[1758728845006,0.0002,4196.8,4196.7,3.0730246]
[1758728845207,0.0002,4196.8,4196.7,2.6105246]
[1758728845502,0.0002,4196.8,4196.7,3.0730246]
[1758728846009,0.0002,4196.8,4196.7,0.6902]
[1758728846206,0.0002,4196.8,4196.7,3.0730246]
[1758728846435,0.0002,4196.8,4196.7,2.3828246]
[1758728846639,0.2258,4196.8,4196.4,0.1184]
[1758728846838,0.3442,4196.8,4196.2,2.38308989]
[1758728847407,0.3442,4196.8,4196.3,2.38303334]
[1758728847608,0.3442,4196.8,4196.1,0.3461]
[1758728847804,0.3442,4196.8,4196.2,2.38310852]
[1758728848308,0.85439682,4196.8,4196.2,2.38310852]
[1758728848547,0.3442,4196.8,4196.1,0.3461]
[1758728848745,0.85439682,4196.8,4196.3,2.38305088]
[1758728848911,0.3442,4196.8,4196.4,2.3829857]
[1758728849313,0.51019682,4196.7,4196.4,2.3829857]
[1758728850209,0.51019682,4196.7,4196.3,2.38304487]
[1758728850649,0.73579682,4196.7,4196.4,2.38299328]
[1758728851061,0.51019682,4196.7,4196.4,2.38299328]
[1758728851261,0.51019682,4196.7,4196.4,2.38299101]
[1758728851579,0.51019682,4196.6,4196.3,2.38304783]
[1758728851716,0.51019682,4196.5,4196.4,2.38299494]
[1758728851918,0.51254289,4196.6,4196.4,2.38299494]